fUSD/lending_fUSD_20241127
["ID","MTS","AMOUNT","RATE_DAILY","PERIOD"]
[343611476,1732747844663,-500.0,9.887e-05,2]
[343611478,1732747844672,-500.0,9.887e-05,2]
[343611480,1732747844681,-177.52,9.887e-05,2]
[343611482,1732747844690,-500.0,9.887e-05,2]
[343611485,1732747844700,-500.0,9.887e-05,2]
[343611488,1732747844709,-405.62,9.887e-05,2]
[343611490,1732747844718,-500.0,9.887e-05,2]
[343611492,1732747844728,-500.0,9.887e-05,2]
[343611494,1732747844737,-500.0,9.887e-05,2]
[343611496,1732747844746,-500.0,9.887e-05,2]
[343611498,1732747844755,-500.0,9.887e-05,2]
[343611500,1732747844764,-500.0,9.887e-05,2]
[343611502,1732747844776,-500.0,9.887e-05,2]
[343611504,1732747844785,-500.0,9.887e-05,2]
[343611506,1732747844795,-500.0,9.887e-05,2]
[343611508,1732747844805,-500.0,9.887e-05,2]
[343611510,1732747844814,-500.0,9.887e-05,2]
[343611512,1732747844823,-511.60664249,9.887e-05,2]
[343611514,1732747844833,-500.0,9.887e-05,2]
[343611516,1732747844842,-500.0,9.887e-05,2]
[343611518,1732747844852,-500.0,9.887e-05,2]
[343611520,1732747844862,-500.0,9.887e-05,2]
[343611523,1732747844871,-168.92,9.887e-05,2]
[343611525,1732747844881,-500.0,9.887e-05,2]
[343611527,1732747844890,-500.0,9.887e-05,2]
[343611528,1732747844900,-500.0,9.887e-05,2]
[343611530,1732747844909,-500.0,9.887e-05,2]
[343611532,1732747844918,-500.0,9.887e-05,2]
[343611534,1732747844928,-500.0,9.887e-05,2]
[343611536,1732747844937,-500.0,9.887e-05,2]
[343611538,1732747844946,-500.0,9.887e-05,2]
[343611540,1732747844955,-500.0,9.887e-05,2]
[343611563,1732747845135,-500.0,9.887e-05,2]
[343611566,1732747845180,-596.36,9.887e-05,2]
[343611568,1732747845189,-510.46887202,9.887e-05,2]
[343611570,1732747845199,-500.0,9.887e-05,2]
[343611572,1732747845208,-500.0,9.887e-05,2]
[343611574,1732747845218,-486.94434817,9.887e-05,2]
[343611576,1732747845227,-500.0,9.887e-05,2]
[343611578,1732747845236,-330.44,9.887e-05,2]
[343611580,1732747845246,-500.0,9.887e-05,2]
[343611582,1732747845256,-500.0,9.887e-05,2]
[343611584,1732747845265,-500.0,9.887e-05,2]
[343611586,1732747845279,-500.0,9.887e-05,2]
[343611588,1732747845288,-594.44,9.887e-05,2]
[343611590,1732747845298,-216.7149717,9.887e-05,2]
[343611592,1732747845309,-555.31,9.887e-05,2]
[343611594,1732747845320,-500.0,9.887e-05,2]
[343611596,1732747845329,-500.0,9.887e-05,2]
[343611598,1732747845338,-500.0,9.887e-05,2]
[343611600,1732747845348,-247.27814559,9.887e-05,2]
[343611602,1732747845357,-500.0,9.887e-05,2]
[343611604,1732747845366,-500.0,9.887e-05,2]
[343611606,1732747845375,-500.0,9.887e-05,2]
[343611608,1732747845385,-361.24,9.887e-05,2]
[343611610,1732747845394,-500.0,9.887e-05,2]
[343611612,1732747845403,-500.0,9.887e-05,2]
[343611614,1732747845413,-378.68,9.887e-05,2]
[343611616,1732747845422,-500.0,9.887e-05,2]
[343611618,1732747845431,-500.0,9.887e-05,2]
[343611620,1732747845440,-500.0,9.887e-05,2]
[343611624,1732747845449,-500.0,9.887e-05,2]
[343611626,1732747845459,-500.0,9.887e-05,2]
[343611628,1732747845467,-500.0,9.887e-05,2]
[343611630,1732747845476,-500.0,9.887e-05,2]
[343611632,1732747845486,-500.0,9.887e-05,2]
[343611634,1732747845495,-500.0,9.887e-05,2]
[343611636,1732747845504,-500.0,9.887e-05,2]
[343611638,1732747845514,-500.0,9.887e-05,2]
[343611640,1732747845525,-195.88,9.887e-05,2]
[343611642,1732747845535,-500.0,9.887e-05,2]
[343611644,1732747845544,-31.05089142,9.887e-05,2]
[343611646,1732747845556,-273.53558053,9.887e-05,2]
[343611648,1732747845568,-195.41352805,9.887e-05,2]
[343611650,1732747845577,-500.0,9.887e-05,2]
[343611652,1732747845586,-500.0,9.887e-05,2]
[343611654,1732747845596,-500.0,9.887e-05,2]
[343611656,1732747845605,-500.0,9.887e-05,2]
[343611658,1732747845614,-284.86,9.887e-05,2]
[343611660,1732747845624,-590.18,9.887e-05,2]
[343611662,1732747845633,-294.53215806,9.887e-05,2]
[343611674,1732747845734,-936.64571,9.887e-05,2]
[343611676,1732747845745,-412.95896702,9.887e-05,2]
[343611678,1732747845762,-709.50000003,9.887e-05,2]
[343611680,1732747845778,-29.61316489,9.887e-05,2]
[343611682,1732747845787,-1791.53251381,9.887e-05,2]
[343611685,1732747845808,-591.71748619,9.887e-05,2]
[343611687,1732747845818,-64.94610264,9.887e-05,2]
[343611690,1732747845833,-2318.30389736,9.887e-05,2]
[343611692,1732747845846,-1015.13089032,9.888e-05,2]
[343611694,1732747845856,-1800.0,9.888e-05,2]
[343611696,1732747845865,-150.0,9.888e-05,2]
[343611698,1732747845874,-150.0,9.888e-05,2]
[343611700,1732747845883,-150.0,9.888e-05,2]
[343611702,1732747845893,-150.0,9.888e-05,2]
[343611704,1732747845902,-150.0,9.888e-05,2]
[343611706,1732747845911,-150.0,9.888e-05,2]
[343611708,1732747845920,-150.0,9.888e-05,2]
[343611710,1732747845930,-150.0,9.888e-05,2]
[343611712,1732747845939,-150.0,9.888e-05,2]
[343611714,1732747845948,-150.0,9.888e-05,2]
[343611716,1732747845957,-150.0,9.888e-05,2]
[343611718,1732747845967,-150.0,9.888e-05,2]
[343611720,1732747845976,-150.0,9.888e-05,2]
[343611722,1732747845985,-150.0,9.888e-05,2]
[343611724,1732747845994,-150.0,9.888e-05,2]
[343611726,1732747846004,-150.0,9.888e-05,2]
[343611728,1732747846014,-315.34649645,9.888e-05,2]
[343611730,1732747846025,-500.0,9.888e-05,2]
[343611732,1732747846034,-271.04,9.888e-05,2]
[343611734,1732747846044,-500.0,9.888e-05,2]
[343611736,1732747846054,-500.0,9.888e-05,2]
[343611738,1732747846064,-500.0,9.888e-05,2]
[343611740,1732747846073,-500.0,9.888e-05,2]
[343611742,1732747846082,-638.56,9.888e-05,2]
[343611744,1732747846091,-500.0,9.888e-05,2]
[343611746,1732747846101,-500.0,9.888e-05,2]
[343611748,1732747846110,-500.0,9.888e-05,2]
[343611750,1732747846119,-500.0,9.888e-05,2]
[343611752,1732747846129,-500.0,9.888e-05,2]
[343611754,1732747846138,-500.0,9.888e-05,2]
[343611756,1732747846147,-461.03,9.888e-05,2]
[343611758,1732747846157,-581.43,9.888e-05,2]
[343611760,1732747846167,-500.0,9.888e-05,2]
[343611762,1732747846176,-500.0,9.888e-05,2]
[343611764,1732747846185,-500.0,9.888e-05,2]
[343611766,1732747846195,-500.0,9.888e-05,2]
[343611768,1732747846204,-500.0,9.888e-05,2]
[343611770,1732747846213,-500.0,9.888e-05,2]
[343611772,1732747846222,-284.04,9.888e-05,2]
[343611774,1732747846232,-500.0,9.888e-05,2]
[343611776,1732747846241,-500.0,9.888e-05,2]
[343611778,1732747846253,-500.0,9.888e-05,2]
[343611780,1732747846262,-500.0,9.888e-05,2]
[343611782,1732747846273,-500.0,9.888e-05,2]
[343611784,1732747846282,-500.0,9.888e-05,2]
[343611786,1732747846291,-500.0,9.888e-05,2]
[343611788,1732747846300,-500.0,9.888e-05,2]
[343611790,1732747846313,-500.0,9.888e-05,2]
[343611792,1732747846323,-500.0,9.888e-05,2]
[343611794,1732747846332,-88.69859874,9.888e-05,2]
[343611796,1732747846344,-411.30140126,9.888e-05,2]
[343611798,1732747846354,-500.0,9.888e-05,2]
[343611800,1732747846363,-500.0,9.888e-05,2]
[343611802,1732747846372,-500.0,9.888e-05,2]
[343611804,1732747846382,-445.47,9.888e-05,2]
[343611806,1732747846392,-500.0,9.888e-05,2]
[343611808,1732747846402,-500.0,9.888e-05,2]
[343611810,1732747846411,-500.0,9.888e-05,2]
[343611812,1732747846421,-337.9617381,9.888e-05,2]
[343611814,1732747846430,-500.0,9.888e-05,2]
[343611816,1732747846439,-282.31,9.888e-05,2]
[343611818,1732747846449,-273.72315736,9.888e-05,2]
[343611820,1732747846458,-500.0,9.888e-05,2]
[343611822,1732747846468,-500.0,9.888e-05,2]
[343611824,1732747846477,-500.0,9.888e-05,2]
[343611826,1732747846486,-500.0,9.888e-05,2]
[343611828,1732747846496,-629.26,9.888e-05,2]
[343611829,1732747846505,-500.0,9.888e-05,2]
[343611830,1732747846514,-500.0,9.888e-05,2]
[343611831,1732747846524,-500.0,9.888e-05,2]
[343611832,1732747846533,-500.0,9.888e-05,2]
[343611833,1732747846543,-327.59,9.888e-05,2]
[343611834,1732747846552,-500.0,9.888e-05,2]
[343611835,1732747846562,-500.0,9.888e-05,2]
[343611836,1732747846571,-500.0,9.888e-05,2]
[343611837,1732747846580,-500.0,9.888e-05,2]
[343611838,1732747846590,-500.0,9.888e-05,2]
[343611839,1732747846600,-500.0,9.888e-05,2]
[343611840,1732747846609,-500.0,9.888e-05,2]
[343611841,1732747846618,-500.0,9.888e-05,2]
[343611842,1732747846628,-230.2,9.888e-05,2]
[343611844,1732747846637,-500.0,9.888e-05,2]
[343611845,1732747846646,-500.0,9.888e-05,2]
[343611847,1732747846655,-500.0,9.888e-05,2]
[343611849,1732747846665,-500.0,9.888e-05,2]
[343611851,1732747846674,-500.0,9.888e-05,2]
[343611853,1732747846684,-500.0,9.888e-05,2]
[343611855,1732747846693,-500.0,9.888e-05,2]
[343611857,1732747846702,-500.0,9.888e-05,2]
[343611859,1732747846712,-500.0,9.888e-05,2]
[343611861,1732747846721,-500.0,9.888e-05,2]
[343611863,1732747846730,-500.0,9.888e-05,2]
[343611865,1732747846739,-500.0,9.888e-05,2]
[343611867,1732747846749,-586.24,9.888e-05,2]
[343611869,1732747846758,-500.0,9.888e-05,2]
[343611871,1732747846767,-260.19148655,9.888e-05,2]
[343611873,1732747846782,-239.80851345,9.888e-05,2]
[343611875,1732747846791,-585.11,9.888e-05,2]
[343611877,1732747846800,-139.40148655,9.888e-05,2]
[343611880,1732747846816,-360.59851345,9.888e-05,2]
[343611882,1732747846825,-500.0,9.888e-05,2]
[343611884,1732747846834,-625.16,9.888e-05,2]
[343611886,1732747846843,-209.98,9.888e-05,2]
[343611888,1732747846853,-349.78,9.888e-05,2]
[343611890,1732747846863,-208.47756808,9.888e-05,2]
[343611892,1732747846872,-482.72,9.888e-05,2]
[343611894,1732747846882,-500.0,9.888e-05,2]
[343611896,1732747846891,-500.0,9.888e-05,2]
[343611898,1732747846900,-500.0,9.888e-05,2]
[343611900,1732747846910,-500.0,9.888e-05,2]
[343611902,1732747846920,-330.33,9.888e-05,2]
[343611904,1732747846930,-500.0,9.888e-05,2]
[343611906,1732747846940,-500.0,9.888e-05,2]
[343611908,1732747846950,-485.44,9.888e-05,2]
[343611910,1732747846960,-500.0,9.888e-05,2]
[343611912,1732747846970,-448.9,9.888e-05,2]
[343611914,1732747846980,-424.56,9.888e-05,2]
[343611916,1732747846990,-500.0,9.888e-05,2]
[343611918,1732747847000,-554.48,9.888e-05,2]
[343611920,1732747847009,-500.0,9.888e-05,2]
[343611922,1732747847019,-500.0,9.888e-05,2]
[343611924,1732747847031,-500.0,9.888e-05,2]
[343611926,1732747847041,-500.0,9.888e-05,2]
[343611928,1732747847050,-2796.18,9.889e-05,2]
[343611930,1732747847060,-334.15,9.923e-05,2]
[343611932,1732747847070,-150.0,9.928e-05,2]
[343611934,1732747847079,-150.86651653,9.953e-05,2]
[343611936,1732747847089,-187.22739367,9.953e-05,2]
[343611938,1732747847099,-500.0,9.953e-05,2]
[343611940,1732747847108,-500.0,9.953e-05,2]
[343611942,1732747847118,-500.63299769,9.953e-05,2]
[343611944,1732747847128,-159.33184311,9.953e-05,2]
[343611946,1732747847138,-500.0,9.953e-05,2]
[343611948,1732747847147,-169.29226266,9.953e-05,2]
[343611950,1732747847156,-500.0,9.953e-05,2]
[343611952,1732747847166,-500.0,9.972e-05,2]
[343611954,1732747847175,-500.0,9.972e-05,2]
[343611956,1732747847185,-213.3,9.972e-05,2]
[343611958,1732747847194,-500.0,9.972e-05,2]
[343611960,1732747847203,-700.27,9.972e-05,2]
[343611962,1732747847212,-500.0,9.972e-05,2]
[343611964,1732747847222,-549.28,9.972e-05,2]
[343611966,1732747847232,-239.19942455,9.972e-05,2]
[343611968,1732747847241,-500.0,9.972e-05,2]
[343611970,1732747847251,-500.0,9.972e-05,2]
[343611972,1732747847260,-500.0,9.972e-05,2]
[343611974,1732747847269,-700.34,9.972e-05,2]
[343611976,1732747847282,-500.0,9.972e-05,2]
[343611978,1732747847292,-391.52,9.972e-05,2]
[343611980,1732747847302,-500.0,9.972e-05,2]
[343611983,1732747847318,-500.0,9.972e-05,2]
[343611984,1732747847327,-500.0,9.972e-05,2]
[343611986,1732747847337,-500.0,9.972e-05,2]
[343611988,1732747847347,-500.0,9.972e-05,2]
[343611990,1732747847356,-1306.94,9.972e-05,2]
[343611992,1732747847365,-2980.2,9.972e-05,2]
[343611994,1732747847375,-500.0,9.972e-05,2]
[343611996,1732747847384,-758.0,9.973e-05,2]
[343611998,1732747847394,-462.0,9.973e-05,2]
[343612000,1732747847403,-592.0,9.973e-05,2]
[343612002,1732747847412,-15113.83868228,9.973e-05,2]
[343612004,1732747847424,-35066.16131772,9.973e-05,2]
[343612006,1732747847434,-200.0,9.978e-05,2]
[343612008,1732747847444,-500.0,9.978e-05,2]
[343612010,1732747847454,-500.0,9.978e-05,2]
[343612012,1732747847465,-355.77468596,9.978e-05,2]
[343612015,1732747847478,-500.0,9.978e-05,2]
[343612017,1732747847487,-500.0,9.978e-05,2]
[343612018,1732747847497,-607.64,9.978e-05,2]
[343612020,1732747847507,-500.0,9.978e-05,2]
[343612023,1732747847518,-500.0,9.978e-05,2]
[343612024,1732747847529,-580.42,9.978e-05,2]
[343612026,1732747847539,-500.0,9.978e-05,2]
[343612028,1732747847548,-500.0,9.978e-05,2]
[343612030,1732747847557,-500.0,9.978e-05,2]
[343612032,1732747847567,-500.0,9.978e-05,2]
[343612034,1732747847576,-500.0,9.978e-05,2]
[343612036,1732747847586,-500.0,9.979e-05,2]
[343612038,1732747847595,-500.0,9.979e-05,2]
[343612040,1732747847604,-500.0,9.979e-05,2]
[343612042,1732747847614,-194.02,9.979e-05,2]
[343612044,1732747847623,-194.32,9.979e-05,2]
[343612046,1732747847632,-500.0,9.979e-05,2]
[343612048,1732747847641,-500.0,9.979e-05,2]
[343612050,1732747847651,-500.0,9.979e-05,2]
[343612052,1732747847661,-302.8,9.979e-05,2]
[343612054,1732747847670,-486.29,9.979e-05,2]
[343612056,1732747847679,-500.0,9.979e-05,2]
[343612058,1732747847688,-170.23,9.979e-05,2]
[343612060,1732747847697,-500.0,9.979e-05,2]
[343612062,1732747847706,-500.0,9.979e-05,2]
[343612064,1732747847716,-113.75938847,9.979e-05,2]
[343612093,1732747847983,-386.24061153,9.979e-05,2]
[343612095,1732747847994,-500.0,9.979e-05,2]
[343612097,1732747848004,-500.0,9.979e-05,2]
[343612099,1732747848013,-500.0,9.979e-05,2]
[343612101,1732747848022,-500.0,9.979e-05,2]
[343612103,1732747848034,-500.0,9.979e-05,2]
[343612105,1732747848044,-500.0,9.979e-05,2]
[343612107,1732747848054,-500.0,9.979e-05,2]
[343612109,1732747848063,-500.0,9.979e-05,2]
[343612111,1732747848072,-500.0,9.979e-05,2]
[343612113,1732747848082,-500.0,9.979e-05,2]
[343612115,1732747848091,-500.0,9.979e-05,2]
[343612117,1732747848101,-500.0,9.979e-05,2]
[343612119,1732747848110,-700.27,9.979e-05,2]
[343612121,1732747848119,-500.0,9.979e-05,2]
[343612123,1732747848128,-700.27,9.979e-05,2]
[343612125,1732747848138,-500.0,9.979e-05,2]
[343612127,1732747848147,-500.0,9.979e-05,2]
[343612129,1732747848156,-549.28,9.979e-05,2]
[343612131,1732747848166,-549.28,9.979e-05,2]
[343612133,1732747848175,-500.0,9.979e-05,2]
[343612134,1732747848184,-500.0,9.979e-05,2]
[343612136,1732747848193,-500.0,9.979e-05,2]
[343612138,1732747848203,-240.92,9.979e-05,2]
[343612140,1732747848212,-500.0,9.979e-05,2]
[343612142,1732747848222,-500.0,9.979e-05,2]
[343612144,1732747848231,-500.0,9.979e-05,2]
[343612146,1732747848240,-500.0,9.979e-05,2]
[343612148,1732747848248,-500.0,9.979e-05,2]
[343612150,1732747848258,-500.0,9.979e-05,2]
[343612152,1732747848267,-500.0,9.979e-05,2]
[343612154,1732747848278,-500.0,9.979e-05,2]
[343612156,1732747848288,-500.0,9.979e-05,2]
[343612158,1732747848297,-500.0,9.979e-05,2]
[343612160,1732747848310,-500.0,9.979e-05,2]
[343612162,1732747848320,-500.0,9.979e-05,2]
[343612164,1732747848329,-500.0,9.979e-05,2]
[343612166,1732747848338,-500.0,9.979e-05,2]
[343612168,1732747848347,-500.0,9.979e-05,2]
[343612169,1732747848357,-500.0,9.979e-05,2]
[343612171,1732747848366,-607.64,9.979e-05,2]
[343612173,1732747848375,-607.64,9.979e-05,2]
[343612175,1732747848385,-500.0,9.979e-05,2]
[343612177,1732747848395,-500.0,9.979e-05,2]
[343612179,1732747848403,-500.0,9.979e-05,2]
[343612181,1732747848412,-500.0,9.979e-05,2]
[343612183,1732747848421,-500.0,9.979e-05,2]
[343612185,1732747848432,-500.0,9.979e-05,2]
[343612187,1732747848441,-700.34,9.979e-05,2]
[343612189,1732747848452,-700.34,9.979e-05,2]
[343612191,1732747848463,-500.0,9.979e-05,2]
[343612193,1732747848472,-500.0,9.979e-05,2]
[343612195,1732747848481,-500.0,9.979e-05,2]
[343612197,1732747848490,-464.27,9.979e-05,2]
[343612199,1732747848499,-580.42,9.979e-05,2]
[343612201,1732747848509,-580.42,9.979e-05,2]
[343612203,1732747848518,-500.0,9.979e-05,2]
[343612205,1732747848529,-500.0,9.979e-05,2]
[343612207,1732747848538,-500.0,9.979e-05,2]
[343612209,1732747848547,-500.0,9.979e-05,2]
[343612211,1732747848557,-500.0,9.979e-05,2]
[343612213,1732747848566,-249.63,9.979e-05,2]
[343612215,1732747848576,-500.0,9.979e-05,2]
[343612217,1732747848586,-500.0,9.979e-05,2]
[343612219,1732747848596,-500.0,9.979e-05,2]
[343612221,1732747848605,-500.0,9.979e-05,2]
[343612223,1732747848615,-500.0,9.979e-05,2]
[343612225,1732747848625,-500.0,9.979e-05,2]
[343612227,1732747848634,-500.0,9.979e-05,2]
[343612229,1732747848643,-500.0,9.979e-05,2]
[343612231,1732747848652,-1306.94,9.979e-05,2]
[343612233,1732747848661,-1306.94,9.979e-05,2]
[343612235,1732747848671,-2980.2,9.979e-05,2]
[343612237,1732747848680,-2980.2,9.979e-05,2]
[343612239,1732747848689,-500.0,9.979e-05,2]
[343612241,1732747848698,-500.0,9.979e-05,2]
[343612243,1732747848707,-500.0,9.979e-05,2]
[343612245,1732747848717,-616.78,9.979e-05,2]
[343612247,1732747848726,-2383.25,9.979e-05,2]
[343612249,1732747848735,-2383.25,9.979e-05,2]
[343612251,1732747848744,-500.0,9.979e-05,2]
[343612253,1732747848753,-500.0,9.979e-05,2]
[343612255,1732747848763,-44470.47938847,9.98e-05,2]
[343613209,1732748480847,10000.0,0.00026,120]
[343613210,1732748511400,10000.0,0.00026,120]
[343613211,1732748534206,8806.2,0.00026,120]
[343613217,1732748959218,1000.0,0.00026,120]
[343613218,1732748967091,-2173.69,8.219e-05,2]
[343613219,1732748967111,-851.8612,8.317e-05,2]
[343613220,1732748967131,-548.013018,8.333e-05,2]
[343613243,1732749031888,-9209.200004,8.333e-05,2]
[343613248,1732749031933,-507.41244999,8.333e-05,2]
[343613249,1732749031945,-683.28546266,8.333e-05,2]
[343613250,1732749032085,-372.28110192,8.333e-05,2]
[343613251,1732749032097,-8889.80796343,8.333e-05,2]
[343613252,1732749032107,-500.0,8.438e-05,2]
[343613253,1732749032118,-200.0,8.469e-05,2]
[343613254,1732749032128,-250.0,8.475e-05,2]
[343613255,1732749032137,-1264.5,8.513e-05,2]
[343613256,1732749032147,-781.18,8.517e-05,2]
[343613257,1732749032161,-500.0,8.575e-05,2]
[343613258,1732749032171,-500.0,8.575e-05,2]
[343613259,1732749032180,-500.0,8.575e-05,2]
[343613260,1732749032189,-500.0,8.575e-05,2]
[343613261,1732749032199,-438.82388162,8.575e-05,2]
[343613262,1732749032209,-4592.78,8.617e-05,2]
[343613263,1732749032219,-318.94,8.752e-05,2]
[343613264,1732749032230,-156.02,8.861e-05,2]
[343613265,1732749032240,-1000.0,8.926e-05,2]
[343613266,1732749032250,-150.0,8.947e-05,2]
[343613267,1732749032260,-11860.92548112,8.948e-05,2]
[343613268,1732749032269,-165.93,8.958e-05,2]
[343613269,1732749032279,-14365.59,8.958e-05,2]
[343613270,1732749032288,-283.95,8.965e-05,2]
[343613271,1732749032297,-150.0,9e-05,2]
[343613272,1732749032307,-169.82,9.2e-05,2]
[343613273,1732749032316,-167.26,9.256e-05,2]
[343613274,1732749032327,-400.0,9.589e-05,2]
[343613275,1732749032337,-299.99,9.67e-05,2]
[343613276,1732749032347,-1000.0,9.673e-05,2]
[343613277,1732749032357,-1047.846,9.689e-05,2]
[343613278,1732749032368,-32599.9535,9.689e-05,2]
[343613279,1732749032379,-104823.45083185,9.773e-05,2]
[343613280,1732749032433,-51557.78226815,9.773e-05,2]
[343613281,1732749032443,-32828.81152585,9.8e-05,2]
[343613282,1732749032452,-265.916,9.831e-05,2]
[343613283,1732749032463,-13688.0,9.831e-05,2]
[343613284,1732749032473,-5953.0,9.831e-05,2]
[343613286,1732749032482,-1164.0,9.831e-05,2]
[343613287,1732749032494,-255.0,9.842e-05,2]
[343613289,1732749032504,-318.94,9.846e-05,2]
[343613291,1732749032513,-500.0,9.863e-05,2]
[343613293,1732749032523,-500.0,9.863e-05,2]
[343613295,1732749032533,-500.0,9.863e-05,2]
[343613297,1732749032543,-330.34,9.863e-05,2]
[343613298,1732749032552,-500.0,9.863e-05,2]
[343613299,1732749032562,-500.0,9.863e-05,2]
[343613300,1732749032571,-180.35123055,9.863e-05,2]
[343613301,1732749032581,-236.31883666,9.863e-05,2]
[343613302,1732749032591,-500.0,9.863e-05,2]
[343613303,1732749032602,-291.48,9.863e-05,2]
[343613304,1732749032612,-500.0,9.863e-05,2]
[343613305,1732749032623,-230.2,9.863e-05,2]
[343613306,1732749032634,-500.0,9.863e-05,2]
[343613307,1732749032643,-500.0,9.863e-05,2]
[343613308,1732749032655,-500.0,9.863e-05,2]
[343613309,1732749032665,-500.0,9.863e-05,2]
[343613310,1732749032675,-500.0,9.863e-05,2]
[343613311,1732749032685,-500.0,9.863e-05,2]
[343613312,1732749032699,-209.98,9.863e-05,2]
[343613313,1732749032709,-500.0,9.863e-05,2]
[343613314,1732749032718,-500.0,9.863e-05,2]
[343613315,1732749032728,-500.0,9.863e-05,2]
[343613316,1732749032739,-500.0,9.863e-05,2]
[343613317,1732749032748,-399.64,9.863e-05,2]
[343613318,1732749032760,-500.0,9.863e-05,2]
[343613319,1732749032771,-500.0,9.863e-05,2]
[343613320,1732749032781,-500.0,9.863e-05,2]
[343613321,1732749032790,-500.0,9.863e-05,2]
[343613322,1732749032800,-313.55,9.863e-05,2]
[343613323,1732749032811,-500.0,9.863e-05,2]
[343613324,1732749032822,-500.0,9.863e-05,2]
[343613325,1732749032832,-500.0,9.863e-05,2]
[343613326,1732749032842,-500.0,9.863e-05,2]
[343613327,1732749032852,-500.0,9.863e-05,2]
[343613328,1732749032864,-349.78,9.863e-05,2]
[343613329,1732749032875,-375.72,9.863e-05,2]
[343613330,1732749032885,-525.2,9.863e-05,2]
[343613331,1732749032895,-500.0,9.863e-05,2]
[343613332,1732749032906,-500.0,9.863e-05,2]
[343613333,1732749032916,-500.0,9.863e-05,2]
[343613334,1732749032925,-508.54732132,9.863e-05,2]
[343613335,1732749032936,-500.0,9.863e-05,2]
[343613336,1732749032946,-236.38,9.863e-05,2]
[343613337,1732749032956,-500.0,9.863e-05,2]
[343613338,1732749032968,-500.0,9.863e-05,2]
[343613339,1732749032978,-500.0,9.863e-05,2]
[343613340,1732749032987,-500.0,9.863e-05,2]
[343613341,1732749032997,-276.87,9.863e-05,2]
[343613342,1732749033007,-500.0,9.863e-05,2]
[343613343,1732749033016,-1588.84,9.863e-05,2]
[343613344,1732749033026,-1588.84,9.863e-05,2]
[343613345,1732749033035,-1588.84,9.863e-05,2]
[343613346,1732749033045,-500.0,9.863e-05,2]
[343613347,1732749033054,-404.53,9.863e-05,2]
[343613348,1732749033064,-572.98,9.863e-05,2]
[343613349,1732749033074,-500.0,9.863e-05,2]
[343613350,1732749033083,-500.0,9.863e-05,2]
[343613351,1732749033093,-500.0,9.863e-05,2]
[343613352,1732749033103,-500.0,9.863e-05,2]
[343613353,1732749033113,-500.0,9.863e-05,2]
[343613354,1732749033123,-500.0,9.863e-05,2]
[343613355,1732749033133,-357.93,9.863e-05,2]
[343613356,1732749033143,-500.0,9.863e-05,2]
[343613357,1732749033152,-500.0,9.863e-05,2]
[343613358,1732749033163,-398.57789756,9.863e-05,2]
[343613359,1732749033173,-526.62,9.863e-05,2]
[343613360,1732749033183,-635.52,9.863e-05,2]
[343613361,1732749033193,-500.0,9.863e-05,2]
[343613362,1732749033203,-500.0,9.863e-05,2]
[343613363,1732749033212,-578.44,9.863e-05,2]
[343613364,1732749033222,-500.0,9.863e-05,2]
[343613365,1732749033232,-500.0,9.863e-05,2]
[343613366,1732749033241,-495.59137667,9.863e-05,2]
[343613367,1732749033251,-500.0,9.863e-05,2]
[343613368,1732749033260,-500.0,9.863e-05,2]
[343613369,1732749033270,-500.0,9.863e-05,2]
[343613370,1732749033279,-500.0,9.863e-05,2]
[343613371,1732749033289,-500.0,9.863e-05,2]
[343613372,1732749033299,-500.0,9.863e-05,2]
[343613373,1732749033308,-162.86,9.863e-05,2]
[343613374,1732749033318,-500.0,9.863e-05,2]
[343613375,1732749033328,-500.0,9.863e-05,2]
[343613376,1732749033337,-500.0,9.863e-05,2]
[343613377,1732749033347,-500.0,9.863e-05,2]
[343613378,1732749033357,-500.0,9.863e-05,2]
[343613379,1732749033366,-500.0,9.863e-05,2]